[Event "2nd Tal Memorial IM 2019"]
[Site "Anogia"]
[Date "2019.09.11"]
[Round "1.2"]
[White "Katopodis, Dimitrios"]
[Black "Peng, Li Min"]
[Result "1/2-1/2"]
[ECO "D30"]
[WhiteElo "2265"]
[BlackElo "2465"]
[Annotator "ChessBase"]
[PlyCount "56"]
[EventDate "2019.09.11"]
[EventType "tourn"]
[EventCountry "GRE"]
[SourceTitle "playchess.com"]
[Source "ChessBase"]
[SourceQuality "1"]
[TimeControl "40/5400+30:1800+30"]

1. c4 {[%emt 0:00:00]} c6 {[%emt 0:00:00]} 2. d4 {[%emt 0:00:34]} d5 {[%emt 0:00:00]} 3. Qc2 {[%emt 0:00:42]} Nf6 {[%emt 0:02:28]} 4. Bf4 {[%emt 0:02:33]} e6 {[%emt 0:03:15]} 5. Nf3 {[%emt 0:02:02]} dxc4 {[%emt 0:07:12]} 6. Qxc4 {[%emt 0:01:53]} b5 {[%emt 0:00:07]} 7. Qc2 {[%emt 0:01:04]} Bb7 {[%emt 0:00:11]} 8. Nbd2 {[%emt 0:03:56]} Nbd7 {[%emt 0:00:25]} 9. Nb3 {[%emt 0:02:48]} Rc8 {[%emt 0:00:21]} 10. Nc5 {[%emt 0:12:19]} Nxc5 {[%emt 0:07:30]} 11. dxc5 {[%emt 0:00:08]} Qa5+ {[%emt 0:00:01]} 12. Bd2 {[%emt 0:04:08]} b4 {[%emt 0:00:52]} 13. Rc1 {[%emt 0:05:42]} Nd7 {[%emt 0:00:47]} 14. Be3 {[%emt 0:18:03]} b3+ {[%emt 0:10:34]} 15. Qd2 {[%emt 0:00:16]} Qxd2+ {[%emt 0:00:05]} 16. Nxd2 {[%emt 0:01:02]} bxa2 {[%emt 0:00:04]} 17. b4 {[%emt 0:07:15]} a5 {[%emt 0:00:16]} 18. bxa5 {[%emt 0:00:28]} Bxc5 {[%emt 0:09:06]} 19. Bxc5 {[%emt 0:01:45]} Nxc5 {[%emt 0:00:03]} 20. Ra1 {[%emt 0:00:26]} Ba6 {[%emt 0:00:02]} 21. e3 {[%emt 0:03:25]} Nd3+ {[%emt 0:00:51]} 22. Bxd3 {[%emt 0:01:02]} Bxd3 {[%emt 0:00:02]} 23. f3 {[%emt 0:02:42]} c5 {[%emt 0:19:38]} 24. Kf2 {[%emt 0:04:01]} c4 {[%emt 0:02:41]} 25. Rhc1 {[%emt 0:01:10]} Ke7 {[%emt 0:07:18]} 26. Rc3 {[%emt 0:01:48]} Bb1 {[%emt 0:01:23]} 27. Nxb1 {[%emt 0:01:35]} axb1=Q {[%emt 0:00:10]} 28. Rxb1 {[%emt 0:00:07]} Rc7 {[%emt 0:00:10]} 1/2-1/2

[Event "2nd Tal Memorial IM 2019"]
[Site "Anogia"]
[Date "2019.09.11"]
[Round "1.3"]
[White "Lekic, Dusan"]
[Black "Sidiropoulos, Nikolaos"]
[Result "1-0"]
[ECO "D18"]
[WhiteElo "2331"]
[BlackElo "2160"]
[Annotator "NA"]
[PlyCount "93"]
[EventDate "2019.09.11"]
[EventType "tourn"]
[EventCountry "GRE"]
[SourceTitle "playchess.com"]
[Source "ChessBase"]
[SourceQuality "1"]
[TimeControl "40/5400+30:1800+30"]

1. d4 {[%emt 0:00:00]} d5 {[%emt 0:00:00]} 2. c4 {[%emt 0:00:00]} c6 {[%emt 0:00:00]} 3. Nf3 {[%emt 0:00:00]} Nf6 {[%emt 0:00:00]} 4. Nc3 {[%emt 0:00:13]} dxc4 {[%emt 0:00:01]} 5. a4 {[%emt 0:00:36]} Bf5 {[%emt 0:00:07]} 6. e3 {[%emt 0:01:15]} e6 {[%emt 0:01:46]} 7. Bxc4 {[%emt 0:00:38]} Nbd7 {[%emt 0:01:50]} 8. O-O {[%emt 0:01:19]} Qc7 {[%emt 0:09:49]} 9. Qe2 {[%emt 0:06:58]} Bg4 {[%emt 0:17:53]} 10. e4 {[%emt 0:04:47]} Be7 {[%emt 0:05:56]} 11. h3 {[%emt 0:05:22]} Bxf3 {[%emt 0:06:07]} 12. Qxf3 {[%emt 0:00:40]} O-O {[%emt 0:00:20]} 13. Bf4 {[%emt 0:10:21]} e5 {[%emt 0:04:35]} 14. Bg3 {[%emt 0:02:46]} Bd6 {[%emt 0:01:13]} 15. Rfc1 {[%emt 0:02:03]} exd4 {[%emt 0:05:17]} 16. Nb5 {[%emt 0:00:34]} cxb5 {[%emt 0:00:05]} 17. Bxf7+ {[%emt 0:00:07]} Rxf7 {[%emt 0:00:04]} 18. Rxc7 {[%emt 0:00:08]} Bxc7 {[%emt 0:00:03]} 19. Bxc7 {[%emt 0:00:09]} Nc5 {[%emt 0:05:16]} 20. Be5 {[%emt 0:05:31]} Nfxe4 {[%emt 0:02:48]} 21. Qa3 {[%emt 0:01:08]} Rd8 {[%emt 0:24:52]} 22. f3 {[%emt 0:05:00]} Rd5 {[%emt 0:06:19]} 23. fxe4 {[%emt 0:03:29]} Rxe5 {[%emt 0:00:08]} 24. Rd1 {[%emt 0:01:47]} Rd7 {[%emt 0:05:56]} 25. axb5 {[%emt 0:01:29]} b6 {[%emt 0:00:19]} 26. Qf3 {[%emt 0:06:41]} d3 {[%emt 0:01:26]} 27. b4 {[%emt 0:00:29]} Nxe4 {[%emt 0:00:15]} 28. Rxd3 {[%emt 0:00:15]} Rxd3 {[%emt 0:00:07]} 29. Qxd3 {[%emt 0:00:05]} Re7 {[%emt 0:00:20]} 30. Qd5+ {[%emt 0:02:31]} Kf8 {[%emt 0:00:06]} 31. Qf5+ {[%emt 0:00:14]} Kg8 {[%emt 0:00:06]} 32. g4 {[%emt 0:01:05]} h6 {[%emt 0:01:52]} 33. Kg2 {[%emt 0:00:26]} Nf6 {[%emt 0:00:51]} 34. h4 {[%emt 0:00:44]} Rf7 {[%emt 0:00:37]} 35. Qc8+ {[%emt 0:04:25]} Rf8 {[%emt 0:00:32]} 36. Qe6+ {[%emt 0:00:09]} Kh7 {[%emt 0:00:24]} 37. Qe7 {[%emt 0:01:11]} Rc8 {[%emt 0:00:30]} 38. g5 {[%emt 0:00:42]} hxg5 {[%emt 0:00:19]} 39. hxg5 {[%emt 0:00:05]} Rc2+ {[%emt 0:00:11]} 40. Kf3 {[%emt 0:00:00]} Rc3+ {[%emt 0:00:00]} 41. Ke2 {[%emt 0:00:40]} Nh5 {[%emt 0:01:51]} 42. Qxa7 {[%emt 0:01:24]} Nf4+ {[%emt 0:01:21]} 43. Kd2 {[%emt 0:01:43]} Rg3 {[%emt 0:01:41]} 44. Qxb6 {[%emt 0:00:32]} Rxg5 {[%emt 0:00:06]} 45. Qc6 {[%emt 0:00:37]} Nd5 {[%emt 0:00:22]} 46. b6 {[%emt 0:00:24]} Nxb4 {[%emt 0:00:14]} 47. Qe4+ {[%emt 0:00:10]} 1-0

[Event "2nd Tal Memorial IM 2019"]
[Site "Anogia"]
[Date "2019.09.11"]
[Round "1.4"]
[White "Bogdanov, Egor"]
[Black "Vanheirzeele, Daniel"]
[Result "1-0"]
[ECO "B06"]
[WhiteElo "2422"]
[BlackElo "2105"]
[Annotator "NA"]
[PlyCount "69"]
[EventDate "2019.09.11"]
[EventType "tourn"]
[EventCountry "GRE"]
[SourceTitle "playchess.com"]
[Source "ChessBase"]
[SourceQuality "1"]
[TimeControl "40/5400+30:1800+30"]

1. e4 {[%emt 0:00:00]} c5 {[%emt 0:00:00]} 2. c3 {[%emt 0:00:00]} d5 {[%emt 0:00:13]} 3. exd5 {[%emt 0:00:00]} Qxd5 {[%emt 0:00:04]} 4. d4 {[%emt 0:00:00]} g6 {[%emt 0:00:30]} 5. Nf3 {[%emt 0:00:00]} Bg7 {[%emt 0:00:34]} 6. Be2 {[%emt 0:00:00]} cxd4 {[%emt 0:07:01]} 7. cxd4 {[%emt 0:00:10]} Nf6 {[%emt 0:02:51]} 8. Nc3 {[%emt 0:00:05]} Qd6 {[%emt 0:00:36]} 9. O-O {[%emt 0:01:44]} O-O {[%emt 0:03:14]} 10. Ne5 {[%emt 0:01:45]} Nc6 {[%emt 0:07:53]} 11. Nb5 {[%emt 0:03:33]} Qd8 {[%emt 0:02:43]} 12. Bf3 {[%emt 0:00:24]} Bd7 {[%emt 0:03:30]} 13. Nc3 {[%emt 0:01:30]} Rc8 {[%emt 0:02:45]} 14. Bf4 {[%emt 0:01:04]} Be6 {[%emt 0:37:55]} 15. Nxc6 {[%emt 0:10:39]} bxc6 {[%emt 0:00:14]} 16. Be5 {[%emt 0:00:15]} Qa5 {[%emt 0:07:28]} 17. Qe2 {[%emt 0:02:38]} Bd5 {[%emt 0:03:28]} 18. a3 {[%emt 0:03:56]} Bxf3 {[%emt 0:06:37]} 19. Qxf3 {[%emt 0:00:24]} c5 {[%emt 0:02:19]} 20. d5 {[%emt 0:00:15]} Ne8 {[%emt 0:00:30]} 21. Bxg7 {[%emt 0:00:16]} Nxg7 {[%emt 0:00:30]} 22. d6 {[%emt 0:06:05]} exd6 {[%emt 0:01:11]} 23. Nd5 {[%emt 0:00:04]} Qd8 {[%emt 0:03:33]} 24. Rfe1 {[%emt 0:00:32]} Ne6 {[%emt 0:01:03]} 25. Qc3 {[%emt 0:00:57]} Nd4 {[%emt 0:04:10]} 26. Ne7+ {[%emt 0:00:09]} Kg7 {[%emt 0:00:34]} 27. Nxc8 {[%emt 0:01:02]} Qxc8 {[%emt 0:00:03]} 28. b4 {[%emt 0:00:19]} Kg8 {[%emt 0:00:36]} 29. bxc5 {[%emt 0:00:48]} dxc5 {[%emt 0:00:04]} 30. Rac1 {[%emt 0:03:46]} Re8 {[%emt 0:00:51]} 31. Qd3 {[%emt 0:01:43]} Rd8 {[%emt 0:00:10]} 32. Qe4 {[%emt 0:00:24]} Ne6 {[%emt 0:01:24]} 33. Red1 {[%emt 0:00:54]} Re8 {[%emt 0:00:04]} 34. h3 {[%emt 0:02:39]} Nd4 {[%emt 0:00:20]} 35. Rxc5 {[%emt 0:00:22]} 1-0

[Event "2nd Tal Memorial IM 2019"]
[Site "Anogia"]
[Date "2019.09.12"]
[Round "2.1"]
[White "Goumas, Georgios"]
[Black "Grieve, Harry"]
[Result "1/2-1/2"]
[ECO "B43"]
[WhiteElo "2417"]
[BlackElo "2277"]
[Annotator "NA"]
[PlyCount "37"]
[EventDate "2019.09.11"]
[EventType "tourn"]
[EventCountry "GRE"]
[SourceTitle "playchess.com"]
[Source "ChessBase"]
[SourceQuality "1"]
[TimeControl "40/5400+30:1800+30"]

1. e4 {[%emt 0:05:05]} c5 {[%emt 0:00:00]} 2. Nf3 {[%emt 0:00:13]} e6 {[%emt 0:00:00]} 3. d4 {[%emt 0:00:13]} cxd4 {[%emt 0:00:02]} 4. Nxd4 {[%emt 0:00:05]} Nc6 {[%emt 0:00:06]} 5. Nc3 {[%emt 0:00:05]} Qc7 {[%emt 0:00:06]} 6. Nb3 {[%emt 0:00:10]} a6 {[%emt 0:04:02]} 7. Bd3 {[%emt 0:00:14]} b5 {[%emt 0:04:36]} 8. f4 {[%emt 0:00:42]} Bb7 {[%emt 0:01:41]} 9. Be3 {[%emt 0:00:57]} d6 {[%emt 0:03:16]} 10. O-O {[%emt 0:00:20]} g6 {[%emt 0:03:31]} 11. Qf3 {[%emt 0:04:05]} Bg7 {[%emt 0:01:58]} 12. Rad1 {[%emt 0:00:25]} Rd8 {[%emt 0:05:24]} 13. Qh3 {[%emt 0:00:53]} Nf6 {[%emt 0:03:10]} 14. f5 {[%emt 0:13:28]} exf5 {[%emt 0:07:04]} 15. exf5 {[%emt 0:01:34]} Ne5 {[%emt 0:08:32]} 16. Rde1 {[%emt 0:16:04]} O-O {[%emt 0:04:38]} 17. Bg5 {[%emt 0:04:49]} Rde8 {[%emt 0:06:19]} 18. Bxf6 {[%emt 0:17:25]} Bxf6 {[%emt 0:01:39]} 19. Be4 {[%emt 0:00:10]} 1/2-1/2

[Event "2nd Tal Memorial IM 2019"]
[Site "Anogia"]
[Date "2019.09.12"]
[Round "2.2"]
[White "Vanheirzeele, Daniel"]
[Black "Sokolovsky, Yahli"]
[Result "0-1"]
[ECO "E97"]
[WhiteElo "2105"]
[BlackElo "2239"]
[Annotator "NA RC"]
[PlyCount "160"]
[EventDate "2019.09.11"]
[EventType "tourn"]
[EventCountry "GRE"]
[SourceTitle "playchess.com"]
[Source "ChessBase"]
[SourceQuality "1"]
[TimeControl "40/5400+30:1800+30"]

1. d4 {[%emt 0:00:00]} Nf6 {[%emt 0:00:00]} 2. Nf3 {[%emt 0:00:00]} g6 {[%emt 0:00:00]} 3. c4 {[%emt 0:00:00]} Bg7 {[%emt 0:00:00]} 4. Nc3 {[%emt 0:00:02]} O-O {[%emt 0:00:00]} 5. e4 {[%emt 0:00:18]} d6 {[%emt 0:00:00]} 6. Be2 {[%emt 0:00:11]} e5 {[%emt 0:00:08]} 7. O-O {[%emt 0:00:24]} Nc6 {[%emt 0:00:09]} 8. dxe5 {[%emt 0:00:58]} dxe5 {[%emt 0:00:09]} 9. Bg5 {[%emt 0:00:19]} Nd4 {[%emt 0:00:42]} 10. Nxd4 {[%emt 0:01:46]} exd4 {[%emt 0:00:38]} 11. Nd5 {[%emt 0:00:24]} Re8 {[%emt 0:02:46]} 12. Qxd4 {[%emt 0:19:56]} Nxd5 {[%emt 0:04:26]} 13. Qxd5 {[%emt 0:00:51]} Qxd5 {[%emt 0:00:18]} 14. cxd5 {[%emt 0:00:07]} Rxe4 {[%emt 0:00:27]} 15. Bf3 {[%emt 0:00:17]} Ra4 {[%emt 0:05:02]} 16. Rac1 {[%emt 0:15:32]} Be5 {[%emt 0:05:10]} 17. Rfe1 {[%emt 0:12:32]} f6 {[%emt 0:00:51]} 18. Rxe5 {[%emt 0:03:07]} fxe5 {[%emt 0:02:58]} 19. a3 {[%emt 0:12:53]} Bg4 {[%emt 0:20:18]} 20. Rxc7 {[%emt 0:10:04]} Rc8 {[%emt 0:20:08]} 21. Rxb7 {[%emt 0:01:48]} Rac4 {[%emt 0:01:17]} 22. h4 {[%emt 0:06:04]} Bxf3 {[%emt 0:01:41]} 23. gxf3 {[%emt 0:00:12]} R4c7 {[%emt 0:00:38]} 24. Rb3 {[%emt 0:01:35]} Rd7 {[%emt 0:02:13]} 25. Rd3 {[%emt 0:00:10]} Rc5 {[%emt 0:02:02]} 26. d6 {[%emt 0:00:13]} Kf7 {[%emt 0:03:57]} 27. b4 {[%emt 0:02:46]} Rc4 {[%emt 0:01:48]} 28. Be7 {[%emt 0:04:48]} Ke6 {[%emt 0:00:15]} 29. Kf1 {[%emt 0:01:52]} Rc2 {[%emt 0:06:49]} 30. Re3 {[%emt 0:01:01]} Kd5 {[%emt 0:02:01]} 31. Rd3+ {[%emt 0:00:14]} Kc4 {[%emt 0:02:38]} 32. Re3 {[%emt 0:00:06]} Kd5 {[%emt 0:04:36]} 33. Rd3+ {[%emt 0:00:05]} Ke6 {[%emt 0:00:58]} 34. Re3 {[%emt 0:00:54]} Kf5 {[%emt 0:01:50]} 35. Kg2 {[%emt 0:01:48]} Rb7 {[%emt 0:02:43]} 36. Rd3 {[%emt 0:00:50]} Ke6 {[%emt 0:00:31]} 37. Re3 {[%emt 0:00:17]} Rc4 {[%emt 0:00:47]} 38. Kg3 {[%emt 0:01:46]} Rb5 {[%emt 0:04:55]} 39. Rd3 {[%emt 0:01:11]} Kd7 {[%emt 0:00:18]} 40. Kg2 {[%emt 0:00:00]} Rc1 {[%emt 0:00:00]} 41. Bg5 {[%emt 0:07:16]} Rc6 {[%emt 0:05:28]} 42. Be3 {[%emt 0:09:23]} Rxd6 {[%emt 0:13:42]} 43. Rxd6+ {[%emt 0:00:07]} Kxd6 {[%emt 0:00:03]} 44. Bxa7 {[%emt 0:00:12]} Rb7 {[%emt 0:02:35]} 45. Bc5+ {[%emt 0:00:05]} Kc6 {[%emt 0:00:49]} 46. a4 {[%emt 0:00:14]} Rg7 {[%emt 0:04:16]} 47. Be3 {[%emt 0:03:06]} Kd5 {[%emt 0:00:41]} 48. a5 {[%emt 0:08:17]} Kc4 {[%emt 0:00:31]} 49. Bc5 {[%emt 0:01:24]} Kb5 {[%emt 0:00:47]} 50. Kg3 {[%emt 0:00:54]} g5 {[%emt 0:00:50]} 51. h5 {[%emt 0:00:51]} Rf7 {[%emt 0:02:47]} 52. Be3 {[%emt 0:01:32]} Kxb4 {[%emt 0:04:15]} 53. a6 {[%emt 0:00:07]} h6 {[%emt 0:00:30]} 54. a7 {[%emt 0:01:15]} Rf8 {[%emt 0:00:07]} 55. Bb6 {[%emt 0:01:05]} Ra8 {[%emt 0:01:05]} 56. Kg4 {[%emt 0:00:39]} Kb5 {[%emt 0:00:42]} 57. Be3 {[%emt 0:00:28]} Rf8 {[%emt 0:00:42]} 58. Kg3 {[%emt 0:00:12]} Kc6 {[%emt 0:00:20]} 59. Kg4 {[%emt 0:00:15]} Kd5 {[%emt 0:00:39]} 60. Bb6 {[%emt 0:00:38]} Rf4+ {[%emt 0:00:39]} 61. Kg3 {[%emt 0:00:05]} Ra4 {[%emt 0:00:10]} 62. Be3 {[%emt 0:00:34]} Ke6 {[%emt 0:00:50]} 63. Bb6 {[%emt 0:00:46]} Kd5 {[%emt 0:01:10]} 64. Be3 {[%emt 0:00:10]} Kc6 {[%emt 0:00:42]} 65. Kg2 {[%emt 0:00:12]} Kb7 {[%emt 0:00:37]} 66. Kg3 {[%emt 0:00:18]} Rc4 {[%emt 0:00:33]} 67. Kg2 {[%emt 0:00:37]} Rh4 {[%emt 0:00:16]} 68. Kg3 {[%emt 0:00:13]} Ka8 {[%emt 0:00:51]} 69. Bc5 {[%emt 0:03:02]} Rxh5 {[%emt 0:00:29]} 70. Bd6 {[%emt 0:00:12]} Kxa7 {[%emt 0:00:51]} 71. Bxe5 {[%emt 0:00:10]} Rh1 {[%emt 0:00:46]} 72. Kg4 {[%emt 0:01:12]} Kb7 {[%emt 0:00:36]} 73. f4 {[%emt 0:00:36]} gxf4 {[%emt 0:00:32]} 74. Bxf4 {[%emt 0:00:25]} Kc6 {[%emt 0:00:17]} 75. Bg3 {[%emt 0:01:28]} Kd5 {[%emt 0:00:34]} 76. Kf5 {[%emt 0:00:01]} Kc6 {[%emt 0:00:37]} 77. Kg4 {[%emt 0:00:42]} Kd7 {[%emt 0:00:10]} 78. Kf5 {[%emt 0:00:59]} Ke7 {[%emt 0:00:38]} 79. Kg4 {[%emt 0:01:09]} Kf7 {[%emt 0:00:24]} 80. f4 {[%emt 0:00:39]} Rg1 {[%emt 0:00:29]} 0-1

[Event "2nd Tal Memorial IM 2019"]
[Site "Anogia"]
[Date "2019.09.12"]
[Round "2.3"]
[White "Sidiropoulos, Nikolaos"]
[Black "Bogdanov, Egor"]
[Result "1/2-1/2"]
[ECO "E76"]
[WhiteElo "2160"]
[BlackElo "2422"]
[Annotator "NA"]
[PlyCount "97"]
[EventDate "2019.09.11"]
[EventType "tourn"]
[EventCountry "GRE"]
[SourceTitle "playchess.com"]
[Source "ChessBase"]
[SourceQuality "1"]
[TimeControl "40/5400+30:1800+30"]

1. d4 {[%emt 0:04:31]} Nf6 {[%emt 0:00:00]} 2. c4 {[%emt 0:00:13]} g6 {[%emt 0:00:00]} 3. Nc3 {[%emt 0:00:06]} Bg7 {[%emt 0:00:00]} 4. e4 {[%emt 0:00:06]} d6 {[%emt 0:00:02]} 5. f4 {[%emt 0:00:14]} O-O {[%emt 0:00:04]} 6. Nf3 {[%emt 0:00:05]} c5 {[%emt 0:00:05]} 7. d5 {[%emt 0:00:04]} e6 {[%emt 0:00:04]} 8. dxe6 {[%emt 0:00:26]} fxe6 {[%emt 0:01:02]} 9. Bd3 {[%emt 0:00:11]} Nc6 {[%emt 0:00:10]} 10. O-O {[%emt 0:00:14]} Nd4 {[%emt 0:01:20]} 11. Nxd4 {[%emt 0:00:29]} cxd4 {[%emt 0:00:05]} 12. Nb5 {[%emt 0:00:12]} a6 {[%emt 0:03:00]} 13. Nxd4 {[%emt 0:09:43]} Qb6 {[%emt 0:00:31]} 14. Be3 {[%emt 0:00:20]} Ng4 {[%emt 0:00:40]} 15. Qxg4 {[%emt 0:00:28]} Bxd4 {[%emt 0:00:05]} 16. Bf2 {[%emt 0:00:31]} e5 {[%emt 0:03:04]} 17. f5 {[%emt 0:00:25]} Qxb2 {[%emt 0:03:19]} 18. Rab1 {[%emt 0:04:24]} Bxf2+ {[%emt 0:02:25]} 19. Rxf2 {[%emt 0:00:09]} Qd4 {[%emt 0:00:30]} 20. Qg3 {[%emt 0:01:17]} Rf6 {[%emt 0:02:54]} 21. fxg6 {[%emt 0:03:12]} hxg6 {[%emt 0:07:28]} 22. Rbf1 {[%emt 0:03:18]} Be6 {[%emt 0:02:26]} 23. Kh1 {[%emt 0:01:21]} Rxf2 {[%emt 0:00:34]} 24. Rxf2 {[%emt 0:01:59]} Kg7 {[%emt 0:06:19]} 25. Qf3 {[%emt 0:02:33]} Kh7 {[%emt 0:08:37]} 26. h4 {[%emt 0:09:36]} Bxc4 {[%emt 0:03:01]} 27. Bxc4 {[%emt 0:01:33]} Qxc4 {[%emt 0:00:04]} 28. Qf7+ {[%emt 0:00:07]} Qxf7 {[%emt 0:00:10]} 29. Rxf7+ {[%emt 0:00:04]} Kh6 {[%emt 0:00:12]} 30. Rxb7 {[%emt 0:00:12]} Kh5 {[%emt 0:02:40]} 31. Rd7 {[%emt 0:04:06]} Kxh4 {[%emt 0:00:53]} 32. Rxd6 {[%emt 0:00:14]} g5 {[%emt 0:03:05]} 33. Kh2 {[%emt 0:20:00]} Kg4 {[%emt 0:00:19]} 34. Rf6 {[%emt 0:00:22]} Rc8 {[%emt 0:02:06]} 35. Rxa6 {[%emt 0:08:22]} Rc4 {[%emt 0:00:07]} 36. a4 {[%emt 0:01:00]} Rxe4 {[%emt 0:00:04]} 37. Ra8 {[%emt 0:01:14]} Rc4 {[%emt 0:00:28]} 38. a5 {[%emt 0:00:14]} Rc6 {[%emt 0:03:54]} 39. a6 {[%emt 0:02:09]} Rh6+ {[%emt 0:00:19]} 40. Kg1 {[%emt 0:00:00]} Kg3 {[%emt 0:00:00]} 41. Rg8 {[%emt 0:04:02]} Rxa6 {[%emt 0:00:49]} 42. Rxg5+ {[%emt 0:00:04]} Kf4 {[%emt 0:00:02]} 43. Rh5 {[%emt 0:00:09]} e4 {[%emt 0:01:23]} 44. Rh3 {[%emt 0:00:06]} e3 {[%emt 0:02:37]} 45. Kf1 {[%emt 0:00:46]} Ra1+ {[%emt 0:00:12]} 46. Ke2 {[%emt 0:00:05]} Ra2+ {[%emt 0:00:07]} 47. Ke1 {[%emt 0:00:07]} Ke4 {[%emt 0:00:39]} 48. Rh8 {[%emt 0:00:09]} Rxg2 {[%emt 0:01:01]} 49. Re8+ {[%emt 0:00:08]} 1/2-1/2

[Event "2nd Tal Memorial IM 2019"]
[Site "Anogia"]
[Date "2019.09.12"]
[Round "2.4"]
[White "Peng, Li Min"]
[Black "Lekic, Dusan"]
[Result "1/2-1/2"]
[ECO "D14"]
[WhiteElo "2465"]
[BlackElo "2331"]
[Annotator "ChessBase"]
[PlyCount "26"]
[EventDate "2019.09.11"]
[EventType "tourn"]
[EventCountry "GRE"]
[SourceTitle "playchess.com"]
[Source "ChessBase"]
[SourceQuality "1"]
[TimeControl "40/5400+30:1800+30"]

1. d4 {[%emt 0:00:27]} d5 {[%emt 0:00:00]} 2. c4 {[%emt 0:00:07]} c6 {[%emt 0:00:00]} 3. cxd5 {[%emt 0:00:09]} cxd5 {[%emt 0:00:00]} 4. Nc3 {[%emt 0:00:07]} Nf6 {[%emt 0:00:02]} 5. Nf3 {[%emt 0:00:07]} Nc6 {[%emt 0:00:07]} 6. Bf4 {[%emt 0:00:05]} Bf5 {[%emt 0:00:26]} 7. e3 {[%emt 0:00:05]} e6 {[%emt 0:00:05]} 8. Bd3 {[%emt 0:00:03]} Bxd3 {[%emt 0:00:12]} 9. Qxd3 {[%emt 0:00:04]} Bd6 {[%emt 0:00:08]} 10. Bxd6 {[%emt 0:00:04]} Qxd6 {[%emt 0:00:19]} 11. O-O {[%emt 0:00:30]} O-O {[%emt 0:00:05]} 12. a3 {[%emt 0:00:02]} Rfc8 {[%emt 0:00:08]} 13. Rfc1 {[%emt 0:00:13]} a6 {[%emt 0:00:41]} 1/2-1/2

[Event "2nd Tal Memorial IM 2019"]
[Site "Anogia"]
[Date "2019.09.12"]
[Round "2.5"]
[White "Logothetis, Sotirios"]
[Black "Katopodis, Dimitrios"]
[Result "0-1"]
[ECO "A41"]
[WhiteElo "2167"]
[BlackElo "2265"]
[Annotator "NA"]
[PlyCount "74"]
[EventDate "2019.09.11"]
[EventType "tourn"]
[EventCountry "GRE"]
[SourceTitle "playchess.com"]
[Source "ChessBase"]
[SourceQuality "1"]
[TimeControl "40/5400+30:1800+30"]

1. d4 {[%emt 0:00:00]} d6 {[%emt 0:01:44]} 2. Nf3 {[%emt 0:00:00]} Bg4 {[%emt 0:01:46]} 3. c4 {[%emt 0:00:06]} Bxf3 {[%emt 0:01:36]} 4. exf3 {[%emt 0:00:37]} e6 {[%emt 0:01:30]} 5. d5 {[%emt 0:03:08]} Nd7 {[%emt 0:08:56]} 6. Nc3 {[%emt 0:01:02]} e5 {[%emt 0:05:26]} 7. Be2 {[%emt 0:01:15]} g6 {[%emt 0:01:10]} 8. f4 {[%emt 0:04:33]} Bg7 {[%emt 0:05:20]} 9. O-O {[%emt 0:02:16]} Ne7 {[%emt 0:01:24]} 10. fxe5 {[%emt 0:07:29]} Nxe5 {[%emt 0:01:47]} 11. Bf4 {[%emt 0:07:26]} O-O {[%emt 0:01:12]} 12. Qd2 {[%emt 0:00:22]} Nf5 {[%emt 0:02:33]} 13. Kh1 {[%emt 0:03:50]} a6 {[%emt 0:06:10]} 14. h3 {[%emt 0:02:52]} Qh4 {[%emt 0:01:41]} 15. Ne4 {[%emt 0:16:22]} Nd4 {[%emt 0:09:34]} 16. Bxe5 {[%emt 0:06:05]} Bxe5 {[%emt 0:05:49]} 17. Bd3 {[%emt 0:02:10]} f5 {[%emt 0:04:02]} 18. Qg5 {[%emt 0:02:15]} Qxg5 {[%emt 0:03:45]} 19. Nxg5 {[%emt 0:00:07]} Bf4 {[%emt 0:07:41]} 20. Nf3 {[%emt 0:07:46]} Nxf3 {[%emt 0:00:05]} 21. gxf3 {[%emt 0:00:07]} Rfe8 {[%emt 0:01:22]} 22. Rfe1 {[%emt 0:01:13]} Kf7 {[%emt 0:01:52]} 23. Kg2 {[%emt 0:01:02]} Kf6 {[%emt 0:01:10]} 24. Rxe8 {[%emt 0:05:56]} Rxe8 {[%emt 0:00:08]} 25. Kf1 {[%emt 0:00:15]} Kg5 {[%emt 0:02:58]} 26. Re1 {[%emt 0:00:49]} Rxe1+ {[%emt 0:01:38]} 27. Kxe1 {[%emt 0:00:06]} Be5 {[%emt 0:00:11]} 28. b3 {[%emt 0:02:03]} Kf4 {[%emt 0:00:12]} 29. Ke2 {[%emt 0:05:53]} Bc3 {[%emt 0:00:19]} 30. Bc2 {[%emt 0:00:58]} Bb4 {[%emt 0:00:52]} 31. a4 {[%emt 0:10:10]} Bc5 {[%emt 0:02:15]} 32. Bd3 {[%emt 0:03:22]} Ke5 {[%emt 0:00:41]} 33. Bc2 {[%emt 0:03:02]} Kd4 {[%emt 0:01:52]} 34. Kd2 {[%emt 0:00:25]} Bb4+ {[%emt 0:00:13]} 35. Ke2 {[%emt 0:00:05]} Kc3 {[%emt 0:00:13]} 36. Bd1 {[%emt 0:00:06]} f4 {[%emt 0:01:24]} 37. Ke1 {[%emt 0:01:22]} Kd3+ {[%emt 0:01:31]} 0-1

[Event "2nd Tal Memorial IM 2019"]
[Site "Anogia"]
[Date "2019.09.13"]
[Round "3.1"]
[White "Katopodis, Dimitrios"]
[Black "Goumas, Georgios"]
[Result "1/2-1/2"]
[ECO "D30"]
[WhiteElo "2265"]
[BlackElo "2417"]
[Annotator "NA"]
[PlyCount "28"]
[EventDate "2019.09.11"]
[EventType "tourn"]
[EventCountry "GRE"]
[SourceTitle "playchess.com"]
[Source "ChessBase"]
[SourceQuality "1"]
[TimeControl "40/5400+30:1800+30"]

1. d4 {[%emt 0:02:52]} Nf6 {[%emt 0:01:13]} 2. c4 {[%emt 0:00:14]} e6 {[%emt 0:00:05]} 3. Nf3 {[%emt 0:00:06]} d5 {[%emt 0:00:03]} 4. g3 {[%emt 0:00:20]} Bb4+ {[%emt 0:00:05]} 5. Bd2 {[%emt 0:00:10]} Bd6 {[%emt 0:00:03]} 6. Bg2 {[%emt 0:00:12]} c6 {[%emt 0:00:15]} 7. Qc2 {[%emt 0:00:26]} O-O {[%emt 0:00:10]} 8. O-O {[%emt 0:02:25]} Nbd7 {[%emt 0:00:21]} 9. Rd1 {[%emt 0:05:22]} Ne4 {[%emt 0:00:24]} 10. Bf4 {[%emt 0:02:53]} Bxf4 {[%emt 0:00:37]} 11. gxf4 {[%emt 0:00:05]} Qe7 {[%emt 0:47:21]} 12. Ne5 {[%emt 0:04:29]} f5 {[%emt 0:00:24]} 13. f3 {[%emt 0:09:39]} Nxe5 {[%emt 0:03:11]} 14. fxe5 {[%emt 0:00:47]} Ng5 {[%emt 0:00:20]} 1/2-1/2

[Event "2nd Tal Memorial IM 2019"]
[Site "Anogia"]
[Date "2019.09.13"]
[Round "3.2"]
[White "Lekic, Dusan"]
[Black "Logothetis, Sotirios"]
[Result "1/2-1/2"]
[ECO "C95"]
[WhiteElo "2331"]
[BlackElo "2167"]
[Annotator "NA"]
[PlyCount "43"]
[EventDate "2019.09.11"]
[EventType "tourn"]
[EventCountry "GRE"]
[SourceTitle "playchess.com"]
[Source "ChessBase"]
[SourceQuality "1"]
[TimeControl "40/5400+30:1800+30"]

1. e4 {[%emt 0:00:00]} e5 {[%emt 0:00:00]} 2. Nf3 {[%emt 0:00:00]} Nc6 {[%emt 0:00:00]} 3. Bb5 {[%emt 0:00:00]} a6 {[%emt 0:00:00]} 4. Ba4 {[%emt 0:00:00]} Nf6 {[%emt 0:00:00]} 5. O-O {[%emt 0:00:05]} Be7 {[%emt 0:00:00]} 6. Re1 {[%emt 0:00:04]} b5 {[%emt 0:00:06]} 7. Bb3 {[%emt 0:00:06]} d6 {[%emt 0:00:06]} 8. c3 {[%emt 0:01:10]} O-O {[%emt 0:00:07]} 9. h3 {[%emt 0:00:03]} Nb8 {[%emt 0:02:04]} 10. d4 {[%emt 0:01:59]} Nbd7 {[%emt 0:00:07]} 11. Nbd2 {[%emt 0:00:18]} Bb7 {[%emt 0:00:35]} 12. Bc2 {[%emt 0:00:12]} Re8 {[%emt 0:00:27]} 13. Nf1 {[%emt 0:00:11]} Bf8 {[%emt 0:00:14]} 14. Ng3 {[%emt 0:00:07]} g6 {[%emt 0:00:14]} 15. a4 {[%emt 0:00:20]} c5 {[%emt 0:01:22]} 16. d5 {[%emt 0:00:12]} c4 {[%emt 0:00:06]} 17. Bg5 {[%emt 0:02:35]} h6 {[%emt 0:01:45]} 18. Be3 {[%emt 0:00:06]} Nc5 {[%emt 0:01:01]} 19. Qd2 {[%emt 0:00:13]} h5 {[%emt 0:00:23]} 20. Bxc5 {[%emt 0:00:23]} dxc5 {[%emt 0:00:05]} 21. Reb1 {[%emt 0:04:35]} Qc7 {[%emt 0:27:37]} 22. Bd1 {[%emt 0:00:53]} 1/2-1/2